bitfinex/quotes_BTCUSD_20250813
["timestamp","ask_amount","ask_price","bid_price","bid_amount"]
[1755092478911,0.72733368,120100.0,120090.0,0.16793108]
[1755092479154,0.72733368,120100.0,120090.0,0.01077108]
[1755092479400,0.73250368,120100.0,120090.0,0.16599108]
[1755092479631,0.72945634,120100.0,120090.0,0.01077108]
[1755092479834,0.72739634,120100.0,120090.0,0.01077108]
[1755092480040,0.2760595,120100.0,120090.0,0.16801108]
[1755092480247,0.72739634,120100.0,120090.0,0.15803393]
[1755092480453,0.72945634,120100.0,120090.0,0.15803393]
[1755092480655,0.73256634,120100.0,120090.0,0.15803393]
[1755092480857,0.72739634,120100.0,120090.0,0.15803393]
[1755092481466,0.73256634,120100.0,120090.0,0.26175393]
[1755092481649,0.73256634,120100.0,120090.0,0.46123393]
[1755092481895,0.73256634,120100.0,120090.0,0.46048]
[1755092482515,0.30665522,120100.0,120090.0,0.3032]
[1755092482729,0.30665522,120100.0,120090.0,0.46146]
[1755092482944,0.75799206,120100.0,120090.0,0.3032]
[1755092483153,0.75799206,120100.0,120090.0,0.46012]
[1755092483357,0.75799206,120100.0,120090.0,0.19948]
[1755092483767,0.05785602,120090.0,120080.0,0.02]
[1755092483974,1.12017038,120090.0,120080.0,0.02014733]
[1755092484389,1.12017038,120090.0,120080.0,0.17682733]
[1755092485051,1.12417038,120090.0,120080.0,0.17682733]
[1755092485256,1.12417038,120090.0,120080.0,0.16684867]
[1755092486334,1.12017038,120090.0,120080.0,0.16684867]
[1755092486546,1.12017038,120090.0,120080.0,0.16656867]
[1755092487176,0.66883354,120090.0,120080.0,0.01016867]
[1755092487390,1.12517038,120090.0,120080.0,0.16648867]
[1755092488576,0.65839619,120090.0,120080.0,0.16648867]
[1755092488795,1.01799511,120090.0,120080.0,0.16648867]
[1755092489021,1.01488511,120090.0,120080.0,0.01146867]
[1755092489252,1.01488511,120090.0,120080.0,0.16802867]
[1755092489253,0.67078309,120090.0,120080.0,0.16802867]
[1755092489503,0.14364704,120090.0,120080.0,0.01146867]
[1755092489706,0.56998388,120090.0,120080.0,0.01227867]
[1755092489900,0.56998388,120090.0,120080.0,0.16919867]
[1755092490094,0.11864704,120090.0,120080.0,0.16919867]
[1755092490244,0.13232278,120090.0,120080.0,0.15922166]
[1755092490444,0.56498388,120090.0,120080.0,0.15841166]
[1755092490657,0.13409606,120090.0,120080.0,0.15841166]
[1755092491079,0.5854329,120090.0,120080.0,0.15841166]
[1755092491286,0.5854329,120090.0,120080.0,0.00149166]
[1755092491482,0.5854329,120090.0,120080.0,0.46233166]
[1755092491699,0.65432046,120090.0,120080.0,0.30473166]
[1755092491902,0.65947046,120090.0,120080.0,0.46119166]
[1755092492122,0.65947046,120090.0,120080.0,0.19971166]
[1755092492341,0.65947046,120090.0,120080.0,0.35747166]
[1755092493129,0.65947046,120090.0,120080.0,0.35877166]
[1755092493130,0.65432046,120090.0,120080.0,0.35877166]
[1755092493409,0.65432046,120090.0,120080.0,0.20101166]
[1755092493615,0.5854329,120090.0,120080.0,0.15986166]
[1755092493829,0.13409606,120090.0,120080.0,0.15986166]
[1755092494059,0.5854329,120090.0,120080.0,0.15986166]
[1755092494304,0.13409606,120090.0,120080.0,0.00149166]
[1755092494509,0.59884251,120090.0,120080.0,0.00149166]
[1755092495005,0.14750567,120090.0,120080.0,0.16049166]
[1755092495228,0.59884251,120090.0,120080.0,0.16045166]
[1755092495475,0.14750567,120090.0,120080.0,0.16045166]
[1755092495683,0.59884251,120090.0,120080.0,0.00149166]
[1755092495906,0.59884251,120090.0,120080.0,0.00230166]
[1755092495907,0.14750567,120090.0,120080.0,0.00230166]
[1755092496126,0.13409606,120090.0,120080.0,0.16110166]
[1755092496342,0.13409606,120090.0,120080.0,0.00230166]
[1755092496343,0.10124004,120090.0,120080.0,0.00230166]
[1755092496577,0.10124004,120090.0,120080.0,0.16118166]
[1755092496810,0.11664704,120090.0,120080.0,0.00230166]
[1755092497025,0.11664704,120090.0,120080.0,0.16118166]
[1755092497244,0.11364704,120090.0,120080.0,0.00230166]
[1755092497680,0.70680051,120090.0,120080.0,0.00149166]
[1755092498147,0.69126221,120090.0,120080.0,0.16025166]
[1755092498383,0.70679046,120090.0,120080.0,0.16025166]
[1755092498834,0.13210752,120090.0,120080.0,0.16094166]
[1755092499041,0.1136585,120090.0,120080.0,0.00230166]
[1755092499267,0.1156585,120090.0,120080.0,0.00230166]
[1755092499924,0.1156585,120090.0,120080.0,0.16098166]
[1755092500372,0.1136585,120090.0,120080.0,0.16098166]
[1755092500585,0.11364902,120090.0,120080.0,0.00230166]
[1755092500766,0.11364902,120090.0,120080.0,0.15997166]
[1755092501227,0.23290241,120090.0,120080.0,0.16001166]
[1755092501441,0.68423925,120090.0,120080.0,0.00019166]
[1755092501623,0.68623925,120090.0,120080.0,0.56655166]
[1755092501858,0.68623925,120090.0,120080.0,0.20067166]
[1755092502086,0.68623925,120090.0,120080.0,0.35911166]
[1755092502320,0.1680547,120090.0,120080.0,0.35911166]
[1755092502528,0.13309804,120090.0,120080.0,0.35911166]
[1755092502859,0.13109804,120090.0,120080.0,0.35811166]
[1755092503085,0.13109804,120090.0,120080.0,0.00100166]
[1755092503344,0.13409804,120090.0,120080.0,0.15971166]
[1755092503547,0.11664902,120090.0,120080.0,0.00200166]
[1755092503965,0.11664902,120090.0,120080.0,0.16052166]
[1755092504334,0.11664902,120090.0,120080.0,0.16044166]
[1755092504566,0.11664902,120090.0,120080.0,0.15963166]
[1755092504776,0.11664902,120090.0,120080.0,0.00119166]
[1755092504984,0.11664902,120090.0,120080.0,0.15951166]
[1755092505519,0.015407,120070.0,120040.0,0.75]
[1755092505798,0.015407,120070.0,120050.0,0.15848]
[1755092505799,0.01432922,120060.0,120050.0,0.15848]
[1755092505934,0.01432922,120060.0,120050.0,0.1584]
[1755092506152,0.01432922,120060.0,120040.0,0.75004913]
[1755092506348,0.01432922,120060.0,120050.0,0.1584]
[1755092506553,0.01432922,120060.0,120050.0,0.15832]
[1755092506751,0.01432922,120060.0,120050.0,0.16248492]
[1755092506976,0.01432922,120060.0,120050.0,0.1584]
[1755092507180,0.01432922,120050.0,120040.0,0.75104913]
[1755092507381,0.01432922,120050.0,120040.0,0.91252913]
[1755092507604,0.01432922,120050.0,120040.0,0.96634166]
[1755092507779,0.01332922,120050.0,120040.0,0.80386166]
[1755092507958,0.01332922,120050.0,120040.0,0.96634166]
[1755092508393,0.09605247,120050.0,120040.0,0.91252913]
[1755092508582,0.09605247,120050.0,120040.0,0.91300913]
[1755092508795,0.56890833,120050.0,120040.0,0.75104913]
[1755092509011,0.11757149,120050.0,120040.0,0.75104913]
[1755092509235,0.11757149,120050.0,120040.0,0.91424913]
[1755092509445,0.11757149,120050.0,120040.0,0.75104913]
[1755092509446,0.1844192,120050.0,120040.0,0.75104913]
[1755092509654,0.1844192,120050.0,120040.0,0.91424913]
[1755092509891,0.1803492,120050.0,120040.0,0.96706166]
[1755092510099,0.1803492,120050.0,120040.0,0.91324913]
[1755092510345,0.1823492,120050.0,120040.0,0.91324913]
[1755092510858,0.1803492,120050.0,120040.0,0.91324913]
[1755092511094,0.16290018,120050.0,120040.0,0.75004913]
[1755092511324,0.16490018,120050.0,120040.0,0.91364913]
[1755092511562,0.09805247,120050.0,120040.0,1.05324913]
[1755092511809,0.09563684,120050.0,120040.0,1.55684913]
[1755092512045,0.09605247,120050.0,120040.0,1.45328913]
[1755092512268,0.09605247,120050.0,120040.0,1.45344913]
[1755092512480,0.09605247,120050.0,120040.0,1.25396913]
[1755092513102,0.08672325,120050.0,120040.0,1.25396913]
[1755092513350,0.01732922,120050.0,120040.0,1.25396913]
[1755092513578,0.01332922,120050.0,120040.0,1.25384913]
[1755092514215,0.01632922,120050.0,120040.0,1.25384913]
[1755092514645,0.01332922,120050.0,120040.0,1.25384913]
[1755092515070,0.01432922,120050.0,120040.0,1.25384913]
[1755092516111,0.01432922,120050.0,120040.0,1.09004913]
[1755092516350,0.09705247,120050.0,120040.0,1.25352913]
[1755092517645,0.01432922,120050.0,120040.0,1.25352913]
[1755092518060,0.01432922,120050.0,120040.0,1.25344913]
[1755092518722,0.001,120050.0,120040.0,1.25344913]
[1755092519375,0.01432922,120050.0,120040.0,1.25344913]
[1755092519576,0.001,120050.0,120040.0,1.25344913]
[1755092519785,0.001,120050.0,120040.0,1.25312913]
[1755092520209,0.001,120050.0,120040.0,1.2836193]
[1755092520439,0.001,120050.0,120040.0,1.4466993]
[1755092521414,0.001,120050.0,120040.0,1.8536193]
[1755092524639,0.09705247,120050.0,120040.0,1.25296913]
[1755092524847,0.10008247,120050.0,120040.0,1.25296913]
[1755092525914,0.09705247,120050.0,120040.0,1.25296913]
[1755092526588,0.09705247,120050.0,120040.0,1.25292913]
[1755092527434,0.09916247,120050.0,120040.0,1.25292913]
[1755092527661,0.10219247,120050.0,120040.0,1.25292913]
[1755092527883,0.10219247,120050.0,120040.0,1.09004913]
[1755092528089,0.16904018,120050.0,120040.0,0.75004913]
[1755092528304,0.16904018,120050.0,120040.0,0.91336913]
[1755092528735,0.61826702,120050.0,120040.0,0.91336913]
[1755092528970,0.16693018,120050.0,120040.0,0.91336913]
[1755092529618,0.16593018,120050.0,120040.0,0.91336913]
[1755092530034,0.16793018,120050.0,120040.0,0.91336913]
[1755092530671,0.16593018,120050.0,120040.0,0.91376913]
[1755092530880,0.1833792,120050.0,120040.0,0.91376913]
[1755092531085,0.1863792,120050.0,120040.0,0.91376913]
[1755092531291,0.12164149,120050.0,120040.0,0.91376913]
[1755092531512,0.12164149,120050.0,120040.0,1.32068913]
[1755092531932,0.12164149,120050.0,120040.0,1.05324913]
[1755092532138,0.12164149,120050.0,120040.0,0.94952913]
[1755092532352,0.12164149,120050.0,120040.0,0.91376913]
[1755092532585,0.10831227,120050.0,120040.0,0.91388913]
[1755092532828,0.10208247,120050.0,120040.0,0.75004913]
[1755092533068,0.09905247,120050.0,120040.0,1.25392913]
[1755092533297,0.09905247,120050.0,120040.0,1.09004913]
[1755092533529,0.10419247,120050.0,120040.0,1.25392913]
[1755092534017,0.09905247,120050.0,120040.0,1.09004913]
[1755092534491,0.09905247,120050.0,120040.0,1.25396913]
[1755092535014,0.09905247,120050.0,120040.0,1.25408913]
[1755092535262,0.10419247,120050.0,120040.0,1.09004913]
[1755092535509,0.10419247,120050.0,120040.0,1.25400913]
[1755092536124,0.09905247,120050.0,120040.0,1.25396913]
[1755092537733,0.10419247,120050.0,120040.0,1.25396913]
[1755092538161,0.10419247,120050.0,120040.0,1.09004913]
[1755092538613,0.10419247,120050.0,120040.0,1.25352913]
[1755092538836,0.10419247,120050.0,120040.0,1.09004913]
[1755092539075,0.10419247,120050.0,120040.0,1.25340913]
[1755092540543,0.10419247,120050.0,120040.0,1.09004913]
[1755092540790,0.10419247,120050.0,120040.0,1.25304913]
[1755092541014,0.10419247,120050.0,120040.0,1.09004913]
[1755092541238,0.10419247,120050.0,120040.0,1.25300913]
[1755092541486,0.10419247,120050.0,120040.0,1.09004913]
[1755092541714,0.10419247,120050.0,120040.0,1.55612913]
[1755092542179,0.10419247,120050.0,120040.0,1.45240913]
[1755092542401,0.10419247,120050.0,120040.0,1.25292913]
[1755092542847,0.09905247,120050.0,120040.0,1.09004913]
[1755092543061,0.09905247,120050.0,120040.0,1.25288913]
[1755092543266,0.10208247,120050.0,120040.0,1.09004913]
[1755092543486,0.10419247,120050.0,120040.0,1.25288913]
[1755092543941,0.10419247,120050.0,120040.0,1.25284913]
[1755092544372,0.10419247,120050.0,120040.0,1.09004913]
[1755092544589,0.10419247,120050.0,120040.0,1.25284913]
[1755092549165,0.10419247,120050.0,120040.0,1.09004913]
[1755092549383,0.10419247,120050.0,120040.0,1.25196913]
[1755092550999,0.10419247,120050.0,120040.0,1.25188913]
[1755092551701,0.10419247,120050.0,120040.0,1.65880913]
[1755092552756,0.10419247,120050.0,120040.0,1.39324913]
[1755092552977,0.55552931,120050.0,120040.0,1.28952913]
[1755092553186,0.57297833,120050.0,120040.0,1.11056913]
[1755092555884,0.12164149,120050.0,120040.0,1.11056913]
[1755092556099,0.57297833,120050.0,120040.0,1.11056913]
[1755092556319,0.57297833,120050.0,120040.0,0.75004913]
[1755092556528,0.57297833,120050.0,120040.0,0.91056913]
[1755092557214,0.63027616,120050.0,120040.0,0.75004913]
[1755092557424,0.68280616,120050.0,120040.0,0.91040913]
[1755092558075,0.74965387,120050.0,120040.0,0.75004913]
[1755092558283,0.77503779,120050.0,120040.0,0.91040913]
[1755092558503,0.77503779,120050.0,120040.0,0.75004913]
[1755092558889,0.77503779,120050.0,120040.0,0.91020913]
[1755092559433,0.80003779,120050.0,120040.0,0.75004913]
[1755092559643,0.80003779,120050.0,120040.0,0.91012913]
[1755092560688,0.79703779,120050.0,120040.0,0.91012913]
[1755092561113,0.80203779,120050.0,120040.0,0.91012913]
[1755092561532,0.35070095,120050.0,120040.0,1.21340913]
[1755092561743,0.80203779,120050.0,120040.0,1.21340913]
[1755092564604,1.16703779,120050.0,120040.0,0.94956913]
[1755092564765,1.16703779,120050.0,120040.0,1.10920913]
[1755092565561,1.16203779,120050.0,120040.0,0.75004913]
[1755092565767,1.16203779,120050.0,120040.0,0.90984913]
[1755092565955,1.16203779,120050.0,120040.0,0.75004913]
[1755092566159,1.16203779,120050.0,120040.0,0.90984913]
[1755092566564,1.16007738,120050.0,120040.0,0.90984913]
[1755092567179,1.1775264,120050.0,120040.0,0.75004913]
[1755092567492,1.1845264,120050.0,120040.0,0.90968913]
[1755092568125,1.1775264,120050.0,120040.0,0.73568256]
[1755092568323,1.1855264,120050.0,120040.0,0.73568256]
[1755092568544,1.63686324,120050.0,120040.0,0.89504256]
[1755092568715,1.1855264,120050.0,120040.0,0.19451316]
[1755092568898,1.17003779,120050.0,120040.0,0.17901553]
[1755092569101,1.17751102,120050.0,120040.0,0.17901553]
[1755092569332,1.17751102,120050.0,120040.0,0.33841553]
[1755092569542,1.18650355,120050.0,120040.0,0.33841553]
[1755092570115,1.45280355,120050.0,120040.0,0.33013647]
[1755092570547,1.39028194,120050.0,120040.0,0.17069647]
[1755092570798,1.32030292,120050.0,120040.0,0.17069647]
[1755092571296,1.39028194,120050.0,120040.0,0.17069647]
[1755092571506,1.38595584,120050.0,120040.0,0.47405647]
[1755092571718,1.37695584,120050.0,120040.0,0.47405647]
[1755092571946,1.37695584,120050.0,120040.0,0.47080647]
[1755092572174,1.38495584,120050.0,120040.0,0.47080647]
[1755092572634,1.38495584,120050.0,120040.0,0.43062294]
[1755092572849,0.08077824,120030.0,120020.0,0.0004]
[1755092573064,1.12751366,120030.0,120020.0,0.30425026]
[1755092573281,1.18320366,120030.0,120020.0,0.46401026]
[1755092573930,0.28052998,120030.0,120020.0,0.46401026]
[1755092574140,1.59005137,120030.0,120020.0,0.46401026]
[1755092574352,0.03011573,119990.0,119980.0,0.02007]
[1755092574578,0.21599917,119990.0,119980.0,0.02007]
[1755092574795,0.66733601,119990.0,119980.0,0.02007]
[1755092575257,0.23783917,119990.0,119980.0,0.02206]
[1755092575482,0.12830474,119990.0,119980.0,0.18162]
[1755092575626,0.58012988,119990.0,119980.0,0.18162]
[1755092575811,0.58012988,119990.0,119980.0,0.02206]
[1755092576276,0.58012988,119990.0,119980.0,0.18166]
[1755092576516,0.13084304,119990.0,119980.0,0.18166]
[1755092576729,0.66782431,119990.0,119980.0,0.18166]
[1755092576937,0.66782431,119990.0,119980.0,0.17967]
[1755092576938,0.67482431,119990.0,119980.0,0.17967]
[1755092577396,1.06482431,119990.0,119980.0,0.17967]
[1755092577601,1.06482431,119990.0,119980.0,0.02007]
[1755092577808,1.06482431,119990.0,119980.0,0.17971]
[1755092577976,0.61344467,119990.0,119980.0,0.17971]
[1755092578184,1.06478151,119990.0,119980.0,0.17971]
[1755092578395,1.13121345,119990.0,119980.0,0.17963]
[1755092578611,0.67987661,119990.0,119980.0,0.17959]
[1755092578829,0.6130289,119990.0,119980.0,0.17959]
[1755092579033,1.06436574,119990.0,119980.0,0.17959]
[1755092579249,1.06436574,119990.0,119980.0,0.02007]
[1755092579720,1.06436574,119990.0,119980.0,0.17947]
[1755092579930,1.13121345,119990.0,119980.0,0.17947]
[1755092580129,1.13121345,119990.0,119980.0,0.02007]
[1755092580333,1.06436574,119990.0,119980.0,0.02007]
[1755092580544,1.06436574,119990.0,119980.0,0.17943]
[1755092580741,1.04894278,119990.0,119980.0,0.02007]
[1755092581099,1.13121041,119990.0,119980.0,0.02007]
[1755092581316,1.13121041,119990.0,119980.0,0.17959]
[1755092581533,1.13121041,119990.0,119980.0,0.48303]
[1755092581972,0.67987357,119990.0,119980.0,0.48303]
[1755092582187,1.13121041,119990.0,119980.0,0.32351]
[1755092582421,0.67987357,119990.0,119980.0,0.21971]
[1755092582647,1.0643627,119990.0,119980.0,0.37911]
[1755092583092,1.0643627,119990.0,119980.0,0.17951]
[1755092583312,1.0643627,119990.0,119980.0,0.17939]
[1755092583764,0.67987357,119990.0,119980.0,0.17939]
[1755092583987,1.13121041,119990.0,119980.0,0.17939]
[1755092584211,1.13121041,119990.0,119980.0,0.17955]
[1755092584437,1.13121041,119990.0,119980.0,0.02007]
[1755092584438,1.18309041,119990.0,119980.0,0.02007]
[1755092584890,1.17609041,119990.0,119980.0,0.17012083]
[1755092585362,1.1172427,119990.0,119980.0,0.01008083]
[1755092585575,0.66590586,119990.0,119980.0,0.17012083]
[1755092585785,0.73274964,119990.0,119980.0,0.17012083]
[1755092585998,0.01266671,119930.0,119920.0,0.10447658]
[1755092586225,0.11080595,119930.0,119920.0,0.11505424]
[1755092586436,0.11080595,119930.0,119920.0,0.15553658]
[1755092587369,0.11080595,119930.0,119920.0,0.31581658]
[1755092587589,0.11129395,119930.0,119920.0,0.26488658]
[1755092587820,0.56263079,119930.0,119920.0,0.26488658]
[1755092588050,0.11429395,119930.0,119920.0,0.26508658]
[1755092588318,0.11430096,119930.0,119920.0,0.26508658]
[1755092588524,0.11430096,119930.0,119920.0,0.10468658]
[1755092588789,0.11430096,119930.0,119920.0,0.15561658]
[1755092589055,0.11388491,119930.0,119920.0,0.15561658]
[1755092589277,0.11388491,119930.0,119920.0,0.26540658]
[1755092589523,0.11388491,119930.0,119920.0,0.10468658]
[1755092589766,0.60732435,119930.0,119920.0,0.10468658]
[1755092589994,0.11388491,119930.0,119920.0,0.26584658]
[1755092590216,0.56522175,119930.0,119920.0,0.10460658]
[1755092590441,0.56522175,119930.0,119920.0,0.26596658]
[1755092590882,0.11388491,119930.0,119920.0,0.26596658]
[1755092591387,0.56522175,119930.0,119920.0,0.26596658]
[1755092591613,0.11388491,119930.0,119920.0,0.56960658]
[1755092592052,0.11388491,119930.0,119920.0,0.46576658]
[1755092592280,0.11388491,119930.0,119920.0,0.26604658]
[1755092592701,0.11388491,119930.0,119920.0,0.10468658]
[1755092593343,0.11388491,119930.0,119920.0,0.26652658]
[1755092593582,0.11388491,119930.0,119920.0,0.26700658]
[1755092593863,0.56522175,119930.0,119920.0,0.26692658]
[1755092594106,0.63206946,119930.0,119920.0,0.10460658]
[1755092594345,0.26829705,119930.0,119920.0,0.10447658]
[1755092594597,0.18581262,119930.0,119920.0,0.26772658]
[1755092594797,0.18581262,119930.0,119920.0,0.10460658]
[1755092594798,0.18076153,119930.0,119920.0,0.10460658]
[1755092594982,0.18076153,119930.0,119920.0,0.26776658]
[1755092595249,0.63209837,119930.0,119920.0,0.10460658]
[1755092595678,0.61943166,119930.0,119920.0,0.10460658]
[1755092595901,0.64909396,119930.0,119920.0,0.10460658]
[1755092596124,0.64909396,119930.0,119920.0,0.26796658]
[1755092596383,0.67662298,119930.0,119920.0,0.26796658]
[1755092596649,0.67662298,119930.0,119920.0,0.10447658]
[1755092596854,0.22028614,119930.0,119920.0,0.10447658]
[1755092597303,0.67662298,119930.0,119920.0,0.26799658]
[1755092597515,0.67662298,119930.0,119920.0,0.26803658]
[1755092597745,0.18276153,119930.0,119920.0,0.10460658]
[1755092598041,0.11591382,119930.0,119920.0,0.26816658]
[1755092598284,0.11591382,119930.0,119920.0,0.26807658]
[1755092598534,0.11591382,119930.0,119920.0,0.10451658]
[1755092598794,0.10324711,119930.0,119920.0,0.26807658]
[1755092599050,0.10324711,119930.0,119920.0,0.29480424]
[1755092599051,0.02093991,119930.0,119920.0,0.29480424]
[1755092599543,0.01593991,119930.0,119920.0,0.29472424]
[1755092599783,0.11132987,119930.0,119920.0,0.26791658]
[1755092600034,0.11532987,119930.0,119920.0,0.10451658]
[1755092600250,0.11532987,119930.0,119920.0,0.26783658]
[1755092600469,0.11532987,119930.0,119920.0,0.10451658]
[1755092601144,0.11532987,119930.0,119920.0,0.26763658]
[1755092601597,0.11532987,119930.0,119920.0,0.40807658]
[1755092601818,0.11532987,119930.0,119920.0,0.57111658]
[1755092602035,0.11532987,119930.0,119920.0,0.30415658]
[1755092602257,0.62333338,119930.0,119920.0,0.30415658]
[1755092602528,0.56970671,119930.0,119920.0,0.46735658]
[1755092602741,0.56970671,119930.0,119920.0,0.26763658]
[1755092602969,0.56970671,119930.0,119920.0,0.26759658]
[1755092602970,0.11532987,119930.0,119920.0,0.26759658]
[1755092603223,0.11532987,119930.0,119920.0,0.10443658]
[1755092603422,0.11532987,119930.0,119920.0,0.26751658]
[1755092603629,0.56671518,119930.0,119920.0,0.26743658]
[1755092603872,0.56671518,119930.0,119920.0,0.10443658]
[1755092604084,0.11537834,119930.0,119920.0,0.26739658]
[1755092604308,0.56671518,119930.0,119920.0,0.26739658]
[1755092604741,0.11537834,119930.0,119920.0,0.10443658]
[1755092605201,0.56671518,119930.0,119920.0,0.10443658]
[1755092605426,0.17204986,119930.0,119920.0,0.10443658]
[1755092605630,0.56671518,119930.0,119920.0,0.10443658]
[1755092605843,0.56975518,119930.0,119920.0,0.10443658]
[1755092606493,0.5542548,119930.0,119920.0,0.26671658]
[1755092606717,0.11842651,119930.0,119920.0,0.26659658]
[1755092606926,0.56672335,119930.0,119920.0,0.26659658]
[1755092607573,0.59084489,119930.0,119920.0,0.26659658]
[1755092607786,0.56672335,119930.0,119920.0,0.26659658]
[1755092608019,0.56672335,119930.0,119920.0,0.10443658]
[1755092608428,0.11538651,119930.0,119920.0,0.10443658]
[1755092608630,0.11538651,119930.0,119920.0,0.26667658]
[1755092608868,0.11538651,119930.0,119920.0,0.26655658]
[1755092609074,0.11538651,119930.0,119920.0,0.26663658]
[1755092609534,0.1027198,119930.0,119920.0,0.29322024]
[1755092609748,0.1027198,119930.0,119920.0,0.29318024]
[1755092609976,0.1027198,119930.0,119920.0,0.10451658]
[1755092610224,1.01999655,119930.0,119920.0,0.26635658]
[1755092610645,1.1027198,119930.0,119920.0,0.10443658]
[1755092610866,1.1027198,119930.0,119920.0,0.26727658]
[1755092611048,1.0987198,119930.0,119920.0,0.26727658]
[1755092611526,1.1007198,119930.0,119920.0,0.67567658]
[1755092611739,1.1007198,119930.0,119920.0,0.70240424]
[1755092612163,1.1007198,119930.0,119920.0,0.59860424]
[1755092612382,1.08521125,119930.0,119920.0,0.59860424]
[1755092612588,1.08521125,119930.0,119920.0,0.49460424]
[1755092612589,1.01801078,119930.0,119920.0,0.49460424]
[1755092612799,1.01801078,119930.0,119920.0,0.13224424]
[1755092613010,1.01801078,119930.0,119920.0,0.10551658]
[1755092613224,1.01801078,119930.0,119920.0,0.26815658]
[1755092614097,1.01801078,119930.0,119920.0,0.10551658]
[1755092614321,1.01801078,119930.0,119920.0,0.26783658]
[1755092614955,1.01801078,119930.0,119920.0,0.10551658]
[1755092615218,1.01801078,119930.0,119920.0,0.27838824]
[1755092615441,1.01801078,119930.0,119920.0,0.27830824]
[1755092615664,1.01801078,119930.0,119920.0,0.26775658]
[1755092615878,1.01801078,119930.0,119920.0,0.10543658]
[1755092616519,1.01801078,119930.0,119920.0,0.26767658]
[1755092616948,1.01801078,119930.0,119920.0,0.10543658]
[1755092617161,1.01801078,119930.0,119920.0,0.11606024]
[1755092617381,1.01801078,119930.0,119920.0,0.27818024]
[1755092617589,1.002488,119930.0,119920.0,0.11606024]
[1755092617769,1.002488,119930.0,119920.0,0.27822024]
[1755092618248,1.002488,119930.0,119920.0,0.26767658]
[1755092618467,1.002488,119930.0,119920.0,0.60759658]
[1755092618674,1.002488,119930.0,119920.0,0.44543658]
[1755092618879,1.002488,119930.0,119920.0,0.60771658]
[1755092619089,1.002488,119930.0,119920.0,0.44551658]
[1755092619306,1.002488,119930.0,119920.0,0.65226824]
[1755092619516,1.002488,119930.0,119920.0,0.44551658]
[1755092619985,1.002488,119930.0,119920.0,0.60763658]
[1755092620214,1.002488,119930.0,119920.0,0.60755658]
[1755092620424,1.002488,119930.0,119920.0,0.60751658]
[1755092620641,1.002488,119930.0,119920.0,0.44551658]
[1755092620851,1.002488,119930.0,119920.0,0.70755658]
[1755092621260,1.002488,119930.0,119920.0,0.54551658]
[1755092621472,1.002488,119930.0,119920.0,1.09383983]
[1755092621712,1.000488,119930.0,119920.0,1.09279983]
[1755092621921,1.000488,119930.0,119920.0,1.01870214]
[1755092622127,1.000488,119930.0,119920.0,0.65702214]
[1755092622339,1.000488,119930.0,119920.0,0.81898214]
[1755092622554,1.001488,119930.0,119920.0,0.65802214]
[1755092622776,1.001488,119930.0,119920.0,0.81986214]
[1755092622982,1.001488,119930.0,119920.0,0.87203214]
[1755092623196,1.001488,119930.0,119920.0,0.73523214]
[1755092623408,1.001488,119930.0,119920.0,1.09052231]
[1755092623619,0.99692502,119930.0,119920.0,1.09052231]
[1755092623839,0.99692502,119930.0,119920.0,1.09294059]
[1755092624062,0.99592502,119930.0,119920.0,1.09194059]
[1755092624276,0.99592502,119930.0,119920.0,1.06536231]
[1755092624491,0.99592502,119930.0,119920.0,0.92880231]
[1755092624713,0.99592502,119930.0,119920.0,1.17782231]
[1755092624924,0.96212333,119930.0,119920.0,1.17968087]
[1755092625140,0.96312333,119930.0,119920.0,1.02012087]
[1755092625405,0.95480205,119930.0,119920.0,1.18144087]
[1755092625620,0.95480205,119930.0,119920.0,1.02012087]
[1755092625830,0.94548077,119930.0,119920.0,0.9857907]
[1755092626262,0.89495106,119930.0,119920.0,0.7400507]
[1755092626474,0.89495106,119930.0,119920.0,0.9010507]
[1755092626687,0.88662978,119930.0,119920.0,0.9010507]
[1755092626908,0.8575053,119930.0,119920.0,0.9010507]
[1755092627154,0.84425077,119930.0,119920.0,0.9007672]
[1755092627371,0.83592949,119930.0,119920.0,0.7397672]
[1755092627585,0.80580501,119930.0,119920.0,0.8981272]
[1755092627790,0.79748373,119930.0,119920.0,0.8991272]
[1755092628225,0.74002713,119930.0,119920.0,0.8991272]
[1755092628455,0.74002713,119930.0,119920.0,0.8981272]
[1755092628674,0.73170585,119930.0,119920.0,0.9001272]
[1755092628891,0.7025964,119930.0,119920.0,0.9001272]
[1755092629109,0.6824591,119930.0,119920.0,0.73908806]
[1755092629337,0.6437801,119930.0,119920.0,0.73908806]
[1755092629554,0.61467065,119930.0,119920.0,0.90024806]
[1755092629769,0.59221292,119930.0,119920.0,0.92524806]
[1755092629977,0.59221292,119930.0,119920.0,0.76408806]
[1755092630185,0.55416206,119930.0,119920.0,0.92524806]
[1755092630416,0.55168476,119930.0,119920.0,0.92524806]
[1755092630638,0.54336778,119930.0,119920.0,0.92524806]
[1755092631061,0.54336778,119930.0,119920.0,0.922713]
[1755092631246,0.54336778,119930.0,119920.0,0.761553]
[1755092631451,0.54336778,119930.0,119920.0,1.12971214]
[1755092631662,0.54336778,119930.0,119920.0,1.32935214]
[1755092632075,0.54336778,119930.0,119920.0,1.12167214]
[1755092632699,0.54336778,119930.0,119920.0,1.10167214]
[1755092632949,0.54336778,119930.0,119920.0,1.101993]
[1755092633130,0.54336778,119930.0,119920.0,0.902353]
[1755092633331,0.54336778,119930.0,119920.0,0.902273]
[1755092633537,0.53471934,119930.0,119920.0,0.902313]
[1755092633743,0.5101516,119930.0,119920.0,0.741553]
[1755092633973,0.5101516,119930.0,119920.0,0.902193]
[1755092634172,0.5101516,119930.0,119920.0,0.927146]
[1755092634576,0.5101516,119930.0,119920.0,0.926906]
[1755092635466,0.5101516,119930.0,119920.0,1.260446]
[1755092635657,0.5101516,119930.0,119920.0,1.047836]
[1755092635875,0.5101516,119930.0,119920.0,1.03006612]
[1755092636091,0.5101516,119930.0,119920.0,1.19066612]
[1755092636885,0.5101516,119930.0,119920.0,1.20811514]
[1755092637312,0.5101516,119930.0,119920.0,1.04751514]
[1755092637659,0.5101516,119930.0,119920.0,0.99265283]
[1755092637882,0.5101516,119930.0,119920.0,1.14530185]
[1755092638081,0.5101516,119930.0,119920.0,1.00498612]
[1755092638367,0.5101516,119930.0,119920.0,1.16510612]
[1755092638876,0.5101516,119930.0,119920.0,1.18255514]
[1755092640027,0.5101516,119930.0,119920.0,1.22377656]
[1755092640028,0.17734766,119930.0,119920.0,1.22377656]
[1755092640249,0.06684771,119950.0,119940.0,0.15478231]
[1755092640526,0.07005771,119970.0,119940.0,0.15478231]
[1755092640527,0.07005771,119970.0,119960.0,0.01233329]
[1755092640705,0.07005771,119970.0,119960.0,0.35465654]
[1755092641122,0.07005771,119970.0,119960.0,0.21250556]
[1755092641272,0.07005771,119990.0,119980.0,0.02978231]
[1755092641481,0.06684771,119990.0,119980.0,0.77902556]
[1755092641722,0.06684771,119990.0,119980.0,0.67535469]
[1755092641938,0.06684771,119990.0,119980.0,0.57159469]
[1755092642282,0.07005771,119990.0,119980.0,0.41215469]
[1755092642488,0.07005771,119990.0,119980.0,0.37187469]
[1755092642698,0.07005771,119990.0,119980.0,0.39686669]